[Event "Titled Tuesday Blitz August 08 Early 2023"]
[White "Fominykh, Maria"]
[Black "Hua, Lefong"]
[WhiteFideId "4142411"]
[BlackFideId "2602253"]
[WhiteElo "2180"]
[BlackElo "2665"]
[Result "0-1"]
[Round "2"]
[TimeControl "180+1"]
[Date "2023.08.08"]
[WhiteClock "0:00:00"]
[BlackClock "0:00:46"]
[Board "122"]

1. d4 {[%clk 0:03:00]}  Nf6 {[%clk 0:02:59]} 2. c4 {[%clk 0:03:00]}  c5 {[%clk 0:02:59]} 3. d5 {[%clk 0:03:00]}  e6 {[%clk 0:03:00]} 4. Nc3 {[%clk 0:03:00]}  exd5 {[%clk 0:02:57]} 5. cxd5 {[%clk 0:03:01]}  d6 {[%clk 0:02:57]} 6. e4 {[%clk 0:03:00]}  g6 {[%clk 0:02:58]} 7. Nf3 {[%clk 0:02:59]}  Bg7 {[%clk 0:02:58]} 8. Bd3 {[%clk 0:02:59]}  a6 {[%clk 0:02:56]} 9. a4 {[%clk 0:02:58]}  Nbd7 {[%clk 0:02:56]} 10. h3 {[%clk 0:02:57]}  Nh5 {[%clk 0:02:56]} 11. O-O {[%clk 0:02:49]}  Ne5 {[%clk 0:02:55]} 12. Be2 {[%clk 0:02:48]}  Nxf3+ {[%clk 0:02:54]} 13. Bxf3 {[%clk 0:02:48]}  Qh4 {[%clk 0:02:52]} 14. Ne2 {[%clk 0:02:02]}  Be5 {[%clk 0:02:43]} 15. Bxh5 {[%clk 0:01:57]}  gxh5 {[%clk 0:02:30]} 16. f4 {[%clk 0:01:53]}  Bf6 {[%clk 0:02:04]} 17. Qe1 {[%clk 0:01:44]}  Rg8 {[%clk 0:01:55]} 18. Qxh4 {[%clk 0:01:40]}  Bxh4 {[%clk 0:01:56]} 19. Kh2 {[%clk 0:01:39]}  Bf6 {[%clk 0:01:56]} 20. Ra3 {[%clk 0:01:25]}  Bd7 {[%clk 0:01:54]} 21. Re1 {[%clk 0:01:18]}  O-O-O {[%clk 0:01:48]} 22. Ng3 {[%clk 0:01:01]}  h4 {[%clk 0:01:30]} 23. Nh5 {[%clk 0:01:00]}  Bd4 {[%clk 0:01:29]} 24. Rd3 {[%clk 0:00:28]}  Rge8 {[%clk 0:01:17]} 25. b3 {[%clk 0:00:18]}  f5 {[%clk 0:01:16]} 26. e5 {[%clk 0:00:10]}  dxe5 {[%clk 0:01:14]} 27. fxe5 {[%clk 0:00:07]}  Bxe5+ {[%clk 0:01:08]} 28. Kh1 {[%clk 0:00:08]}  Bd4 {[%clk 0:01:06]} 29. Rdd1 {[%clk 0:00:07]}  b5 {[%clk 0:01:00]} 30. Bg5 {[%clk 0:00:06]}  Rxe1+ {[%clk 0:00:58]} 31. Rxe1 {[%clk 0:00:07]}  Re8 {[%clk 0:00:57]} 32. Rxe8+ {[%clk 0:00:05]}  Bxe8 {[%clk 0:00:58]} 33. axb5 {[%clk 0:00:06]}  axb5 {[%clk 0:00:58]} 34. Bxh4 {[%clk 0:00:06]}  Bf7 {[%clk 0:00:56]} 35. Nf4 {[%clk 0:00:05]}  Be5 {[%clk 0:00:50]} 36. Ne6 {[%clk 0:00:04]}  c4 {[%clk 0:00:49]} 37. bxc4 {[%clk 0:00:04]}  bxc4 {[%clk 0:00:50]} 38. Be1 {[%clk 0:00:01]}  c3 {[%clk 0:00:50]} 39. Nc5 {[%clk 0:00:01]}  c2 {[%clk 0:00:47]} 40. Nd3 {[%clk 0:00:01]}  Bxd5 {[%clk 0:00:45]} 41. Bd2 {[%clk 0:00:00]}  Bd4 {[%clk 0:00:46]} 0-1


[Site "https://www.chess.com"]

[Event "Titled Tuesday Blitz August 08 Early 2023"]
[White "Thorsteinsdottir, Hallgerdur"]
[Black "Le, Tuan Minh"]
[WhiteFideId "2302454"]
[BlackFideId "12401153"]
[WhiteElo "2138"]
[BlackElo "2961"]
[Result "0-1"]
[Round "2"]
[TimeControl "180+1"]
[Date "2023.08.08"]
[WhiteClock "0:00:10"]
[BlackClock "0:00:37"]
[Board "125"]

1. d4 {[%clk 0:03:00]}  Nc6 {[%clk 0:02:44]} 2. c4 {[%clk 0:02:54]}  e5 {[%clk 0:02:43]} 3. d5 {[%clk 0:02:46]}  Nce7 {[%clk 0:02:43]} 4. e4 {[%clk 0:02:44]}  d6 {[%clk 0:02:42]} 5. g3 {[%clk 0:02:41]}  f5 {[%clk 0:02:42]} 6. Bh3 {[%clk 0:02:35]}  Nf6 {[%clk 0:02:41]} 7. Nc3 {[%clk 0:02:30]}  fxe4 {[%clk 0:02:40]} 8. Bxc8 {[%clk 0:02:29]}  Qxc8 {[%clk 0:02:41]} 9. Bg5 {[%clk 0:02:14]}  Ng6 {[%clk 0:02:41]} 10. Bxf6 {[%clk 0:02:12]}  gxf6 {[%clk 0:02:42]} 11. Nxe4 {[%clk 0:02:12]}  Be7 {[%clk 0:02:39]} 12. Ne2 {[%clk 0:02:00]}  f5 {[%clk 0:02:27]} 13. N4c3 {[%clk 0:01:53]}  O-O {[%clk 0:02:26]} 14. Qd2 {[%clk 0:01:45]}  f4 {[%clk 0:02:11]} 15. gxf4 {[%clk 0:01:40]}  Nxf4 {[%clk 0:02:02]} 16. Nxf4 {[%clk 0:01:40]}  Rxf4 {[%clk 0:02:03]} 17. Rg1+ {[%clk 0:01:31]}  Kh8 {[%clk 0:01:56]} 18. Qd3 {[%clk 0:01:31]}  Qf8 {[%clk 0:01:45]} 19. Rg2 {[%clk 0:01:21]}  Rf3 {[%clk 0:01:39]} 20. Qe4 {[%clk 0:01:17]}  Rf4 {[%clk 0:01:30]} 21. Qe2 {[%clk 0:01:15]}  Qh6 {[%clk 0:01:30]} 22. Nd1 {[%clk 0:01:07]}  Raf8 {[%clk 0:01:10]} 23. Ne3 {[%clk 0:01:04]}  Bh4 {[%clk 0:01:10]} 24. Ng4 {[%clk 0:00:59]}  Qg6 {[%clk 0:01:05]} 25. O-O-O {[%clk 0:00:47]}  Qe4 {[%clk 0:00:51]} 26. Qxe4 {[%clk 0:00:37]}  Rxe4 {[%clk 0:00:52]} 27. b3 {[%clk 0:00:32]}  h5 {[%clk 0:00:45]} 28. f3 {[%clk 0:00:16]}  Rxf3 {[%clk 0:00:40]} 29. Nh6 {[%clk 0:00:16]}  Kh7 {[%clk 0:00:35]} 30. Ng8 {[%clk 0:00:16]}  Rg4 {[%clk 0:00:34]} 31. Rxg4 {[%clk 0:00:15]}  hxg4 {[%clk 0:00:35]} 32. Rg1 {[%clk 0:00:14]}  Rf4 {[%clk 0:00:36]} 33. h3 {[%clk 0:00:12]}  Kxg8 {[%clk 0:00:36]} 34. hxg4 {[%clk 0:00:10]}  Kg7 {[%clk 0:00:37]} 0-1


[Site "https://www.chess.com"]

[Event "Titled Tuesday Blitz August 08 Early 2023"]
[White "Sjugirov, Sanan"]
[Black "Hnydiuk, Aleksander"]
[WhiteFideId "4189302"]
[BlackFideId "1109057"]
[WhiteElo "2918"]
[BlackElo "2503"]
[Result "1-0"]
[Round "2"]
[TimeControl "180+1"]
[Date "2023.08.08"]
[WhiteClock "0:02:13"]
[BlackClock "0:00:11"]
[Board "127"]

1. e4 {[%clk 0:03:00]}  e5 {[%clk 0:02:58]} 2. Nf3 {[%clk 0:03:01]}  Nc6 {[%clk 0:02:58]} 3. Bc4 {[%clk 0:03:02]}  Bc5 {[%clk 0:02:56]} 4. d3 {[%clk 0:03:02]}  Nf6 {[%clk 0:02:56]} 5. a4 {[%clk 0:03:03]}  O-O {[%clk 0:02:55]} 6. O-O {[%clk 0:03:03]}  h6 {[%clk 0:02:52]} 7. a5 {[%clk 0:03:02]}  a6 {[%clk 0:02:50]} 8. c3 {[%clk 0:03:02]}  d5 {[%clk 0:02:48]} 9. exd5 {[%clk 0:03:03]}  Nxd5 {[%clk 0:02:48]} 10. Nbd2 {[%clk 0:03:04]}  Bf5 {[%clk 0:02:43]} 11. Re1 {[%clk 0:03:01]}  Re8 {[%clk 0:02:39]} 12. Ne4 {[%clk 0:03:01]}  Ba7 {[%clk 0:02:37]} 13. Qb3 {[%clk 0:02:58]}  Be6 {[%clk 0:02:26]} 14. Qxb7 {[%clk 0:02:53]}  Qd7 {[%clk 0:02:08]} 15. Qb3 {[%clk 0:02:53]}  f5 {[%clk 0:01:49]} 16. Ng3 {[%clk 0:02:53]}  Bf7 {[%clk 0:01:45]} 17. Nxf5 {[%clk 0:02:25]}  Rab8 {[%clk 0:01:44]} 18. Qa2 {[%clk 0:02:24]}  Rb5 {[%clk 0:00:41]} 19. Ng3 {[%clk 0:02:15]}  Rxa5 {[%clk 0:00:40]} 20. Qb1 {[%clk 0:02:16]}  Rxa1 {[%clk 0:00:29]} 21. Qxa1 {[%clk 0:02:17]}  Nf4 {[%clk 0:00:21]} 22. Bxf4 {[%clk 0:02:14]}  exf4 {[%clk 0:00:21]} 23. Rxe8+ {[%clk 0:02:13]}  Qxe8 {[%clk 0:00:20]} 24. Bxf7+ {[%clk 0:02:13]}  Qxf7 {[%clk 0:00:18]} 25. Ne4 {[%clk 0:02:14]}  Qd5 {[%clk 0:00:11]} 26. Qxa6 {[%clk 0:02:13]} 1-0


[Site "https://www.chess.com"]

[Event "Titled Tuesday Blitz August 08 Early 2023"]
[White "Henriquez Villagra, Cristobal"]
[Black "Khamdamova, Afruza"]
[WhiteFideId "3409350"]
[BlackFideId "14210444"]
[WhiteElo "2839"]
[BlackElo "2479"]
[Result "1-0"]
[Round "2"]
[TimeControl "180+1"]
[Date "2023.08.08"]
[WhiteClock "0:00:06"]
[BlackClock "0:00:04"]
[Board "130"]

1. Nf3 {[%clk 0:02:58]}  d5 {[%clk 0:02:59]} 2. g3 {[%clk 0:02:57]}  Nf6 {[%clk 0:02:57]} 3. Bg2 {[%clk 0:02:51]}  c5 {[%clk 0:02:56]} 4. O-O {[%clk 0:02:51]}  Nc6 {[%clk 0:02:55]} 5. d3 {[%clk 0:02:51]}  e5 {[%clk 0:02:50]} 6. e4 {[%clk 0:02:48]}  d4 {[%clk 0:02:38]} 7. Na3 {[%clk 0:02:40]}  Bd6 {[%clk 0:02:35]} 8. Nc4 {[%clk 0:02:35]}  Bc7 {[%clk 0:02:30]} 9. a4 {[%clk 0:02:36]}  O-O {[%clk 0:02:26]} 10. Nh4 {[%clk 0:02:36]}  Be6 {[%clk 0:02:23]} 11. b3 {[%clk 0:02:33]}  a6 {[%clk 0:02:23]} 12. f4 {[%clk 0:02:32]}  exf4 {[%clk 0:02:09]} 13. Nf5 {[%clk 0:01:53]}  fxg3 {[%clk 0:01:27]} 14. hxg3 {[%clk 0:01:48]}  b5 {[%clk 0:01:21]} 15. axb5 {[%clk 0:01:44]}  axb5 {[%clk 0:01:21]} 16. Rxa8 {[%clk 0:01:44]}  Qxa8 {[%clk 0:01:21]} 17. Ncd6 {[%clk 0:01:45]}  Bxf5 {[%clk 0:00:59]} 18. Nxf5 {[%clk 0:01:44]}  Be5 {[%clk 0:00:59]} 19. g4 {[%clk 0:01:44]}  Qd8 {[%clk 0:00:49]} 20. g5 {[%clk 0:01:44]}  Ne8 {[%clk 0:00:49]} 21. Bh3 {[%clk 0:01:44]}  Nd6 {[%clk 0:00:48]} 22. Qg4 {[%clk 0:01:18]}  Ne7 {[%clk 0:00:39]} 23. Ba3 {[%clk 0:01:02]}  Ndxf5 {[%clk 0:00:36]} 24. exf5 {[%clk 0:01:03]}  Nd5 {[%clk 0:00:36]} 25. f6 {[%clk 0:00:37]}  Ne3 {[%clk 0:00:31]} 26. Qe4 {[%clk 0:00:38]}  Re8 {[%clk 0:00:28]} 27. Qc6 {[%clk 0:00:20]}  Nxf1 {[%clk 0:00:26]} 28. Kxf1 {[%clk 0:00:21]}  Bg3 {[%clk 0:00:23]} 29. Bxc5 {[%clk 0:00:19]}  Re1+ {[%clk 0:00:16]} 30. Kg2 {[%clk 0:00:19]}  Bh4 {[%clk 0:00:16]} 31. Be7 {[%clk 0:00:19]}  Qb8 {[%clk 0:00:15]} 32. Bd6 {[%clk 0:00:16]}  Qd8 {[%clk 0:00:15]} 33. Bc7 {[%clk 0:00:07]}  Qf8 {[%clk 0:00:15]} 34. Qxb5 {[%clk 0:00:08]}  gxf6 {[%clk 0:00:14]} 35. Bf5 {[%clk 0:00:07]}  Bxg5 {[%clk 0:00:13]} 36. Be4 {[%clk 0:00:06]}  Qg7 {[%clk 0:00:12]} 37. Qe8+ {[%clk 0:00:05]}  Qf8 {[%clk 0:00:08]} 38. Bxh7+ {[%clk 0:00:05]}  Kg7 {[%clk 0:00:08]} 39. Qxe1 {[%clk 0:00:04]}  Kxh7 {[%clk 0:00:08]} 40. Qe4+ {[%clk 0:00:05]}  Kg8 {[%clk 0:00:08]} 41. Qxd4 {[%clk 0:00:06]}  Qc8 {[%clk 0:00:08]} 42. Qc4 {[%clk 0:00:06]}  Qb7+ {[%clk 0:00:08]} 43. Kf2 {[%clk 0:00:05]}  Bh4+ {[%clk 0:00:07]} 44. Qxh4 {[%clk 0:00:05]}  Qxc7 {[%clk 0:00:08]} 45. Qg3+ {[%clk 0:00:05]}  Qxg3+ {[%clk 0:00:04]} 46. Kxg3 {[%clk 0:00:06]} 1-0


[Site "https://www.chess.com"]

[Event "Titled Tuesday Blitz August 08 Early 2023"]
[White "Ozen, Bahadir"]
[Black "Rietze, Clemens, Dr."]
[WhiteFideId "6337058"]
[BlackFideId "24620351"]
[WhiteElo "2813"]
[BlackElo "2449"]
[Result "1-0"]
[Round "2"]
[TimeControl "180+1"]
[Date "2023.08.08"]
[WhiteClock "0:00:48"]
[BlackClock "0:00:11"]
[Board "131"]

1. g3 {[%clk 0:03:00]}  Nf6 {[%clk 0:02:59]} 2. Nf3 {[%clk 0:03:00]}  g6 {[%clk 0:02:59]} 3. Bg2 {[%clk 0:03:01]}  Bg7 {[%clk 0:03:00]} 4. O-O {[%clk 0:03:01]}  O-O {[%clk 0:03:01]} 5. d3 {[%clk 0:03:01]}  d6 {[%clk 0:03:01]} 6. Nbd2 {[%clk 0:02:59]}  e5 {[%clk 0:02:59]} 7. e4 {[%clk 0:02:59]}  Nc6 {[%clk 0:02:59]} 8. c3 {[%clk 0:02:59]}  a5 {[%clk 0:02:55]} 9. a4 {[%clk 0:02:34]}  Nd7 {[%clk 0:02:54]} 10. Nc4 {[%clk 0:02:17]}  f5 {[%clk 0:02:32]} 11. Re1 {[%clk 0:02:15]}  Nf6 {[%clk 0:02:10]} 12. exf5 {[%clk 0:01:49]}  Bxf5 {[%clk 0:01:53]} 13. Ne3 {[%clk 0:01:49]}  Bd7 {[%clk 0:01:50]} 14. Qb3+ {[%clk 0:01:47]}  Kh8 {[%clk 0:01:44]} 15. Qxb7 {[%clk 0:01:44]}  e4 {[%clk 0:01:12]} 16. dxe4 {[%clk 0:01:41]}  Nxe4 {[%clk 0:01:13]} 17. Nd5 {[%clk 0:01:28]}  Ra7 {[%clk 0:01:11]} 18. Qb3 {[%clk 0:01:25]}  Nc5 {[%clk 0:01:08]} 19. Qc4 {[%clk 0:01:21]}  Rxf3 {[%clk 0:00:38]} 20. Bxf3 {[%clk 0:01:17]}  Ne5 {[%clk 0:00:38]} 21. Rxe5 {[%clk 0:01:12]}  Bxe5 {[%clk 0:00:37]} 22. Be3 {[%clk 0:01:05]}  Qf8 {[%clk 0:00:27]} 23. Bg2 {[%clk 0:01:01]}  Be6 {[%clk 0:00:25]} 24. Bxc5 {[%clk 0:00:58]}  dxc5 {[%clk 0:00:25]} 25. Qe4 {[%clk 0:00:58]}  Qd6 {[%clk 0:00:19]} 26. Rd1 {[%clk 0:00:49]}  Bf5 {[%clk 0:00:18]} 27. Qe2 {[%clk 0:00:49]}  Ra8 {[%clk 0:00:15]} 28. Ne3 {[%clk 0:00:48]}  Qf8 {[%clk 0:00:13]} 29. Bxa8 {[%clk 0:00:48]}  Qe8 {[%clk 0:00:11]} 30. Nxf5 {[%clk 0:00:48]} 1-0


[Site "https://www.chess.com"]

[Event "Titled Tuesday Blitz August 08 Early 2023"]
[White "Kosteniuk, Alexandra"]
[Black "Rosh Jain"]
[WhiteFideId "4128125"]
[BlackFideId "25789465"]
[WhiteElo "2782"]
[BlackElo "2466"]
[Result "0-1"]
[Round "2"]
[TimeControl "180+1"]
[Date "2023.08.08"]
[WhiteClock "0:00:22"]
[BlackClock "0:00:05"]
[Board "132"]

1. c4 {[%clk 0:03:00]}  e6 {[%clk 0:02:46]} 2. Nc3 {[%clk 0:02:57]}  d5 {[%clk 0:02:45]} 3. d4 {[%clk 0:02:58]}  Nf6 {[%clk 0:02:45]} 4. cxd5 {[%clk 0:02:57]}  exd5 {[%clk 0:02:45]} 5. Bg5 {[%clk 0:02:57]}  Be7 {[%clk 0:02:45]} 6. e3 {[%clk 0:02:57]}  O-O {[%clk 0:02:44]} 7. Bd3 {[%clk 0:02:57]}  h6 {[%clk 0:02:44]} 8. Bh4 {[%clk 0:02:57]}  c6 {[%clk 0:02:41]} 9. Nge2 {[%clk 0:02:56]}  Be6 {[%clk 0:02:40]} 10. O-O {[%clk 0:02:56]}  Re8 {[%clk 0:02:40]} 11. Rb1 {[%clk 0:02:56]}  Nbd7 {[%clk 0:02:40]} 12. b4 {[%clk 0:02:55]}  Rc8 {[%clk 0:02:37]} 13. h3 {[%clk 0:02:48]}  Nf8 {[%clk 0:02:25]} 14. f4 {[%clk 0:02:48]}  Bd7 {[%clk 0:02:08]} 15. f5 {[%clk 0:02:44]}  N8h7 {[%clk 0:02:05]} 16. Nf4 {[%clk 0:02:35]}  Bd6 {[%clk 0:02:03]} 17. Qd2 {[%clk 0:02:29]}  Qe7 {[%clk 0:02:02]} 18. Ncxd5 {[%clk 0:02:20]}  cxd5 {[%clk 0:02:01]} 19. Nxd5 {[%clk 0:02:21]}  Qf8 {[%clk 0:01:59]} 20. Nxf6+ {[%clk 0:02:20]}  gxf6 {[%clk 0:02:00]} 21. e4 {[%clk 0:02:14]}  Kh8 {[%clk 0:01:47]} 22. a3 {[%clk 0:02:08]}  Bc7 {[%clk 0:01:47]} 23. Bc4 {[%clk 0:01:57]}  Bh2+ {[%clk 0:01:32]} 24. Kxh2 {[%clk 0:01:55]}  Rxc4 {[%clk 0:01:32]} 25. Rbe1 {[%clk 0:01:36]}  Ng5 {[%clk 0:01:25]} 26. e5 {[%clk 0:01:26]}  Bc6 {[%clk 0:00:38]} 27. Rf4 {[%clk 0:01:21]}  Bd5 {[%clk 0:00:33]} 28. exf6 {[%clk 0:01:19]}  Rec8 {[%clk 0:00:29]} 29. Rf2 {[%clk 0:01:12]}  Qd6+ {[%clk 0:00:23]} 30. Bg3 {[%clk 0:01:11]}  Qd7 {[%clk 0:00:20]} 31. Be5 {[%clk 0:01:10]}  Rc2 {[%clk 0:00:19]} 32. Qxc2 {[%clk 0:01:09]}  Rxc2 {[%clk 0:00:18]} 33. Rxc2 {[%clk 0:01:10]}  Qxf5 {[%clk 0:00:17]} 34. Rc5 {[%clk 0:01:02]}  Qd7 {[%clk 0:00:11]} 35. Rec1 {[%clk 0:00:58]}  Ne4 {[%clk 0:00:05]} 36. Rc8+ {[%clk 0:00:58]}  Kh7 {[%clk 0:00:05]} 37. Rf8 {[%clk 0:00:48]}  Qf5 {[%clk 0:00:05]} 38. Rcc8 {[%clk 0:00:48]}  Qf2 {[%clk 0:00:03]} 39. Rh8+ {[%clk 0:00:48]}  Kg6 {[%clk 0:00:04]} 40. Rcg8+ {[%clk 0:00:48]}  Kf5 {[%clk 0:00:04]} 41. Rxh6 {[%clk 0:00:22]}  Ng5 {[%clk 0:00:05]} 0-1


[Site "https://www.chess.com"]

[Event "Titled Tuesday Blitz August 08 Early 2023"]
[White "Lamaze, Simon"]
[Black "Polaczek, Richard"]
[WhiteFideId "36069264"]
[BlackFideId "200026"]
[WhiteElo "2747"]
[BlackElo "2417"]
[Result "1-0"]
[Round "2"]
[TimeControl "180+1"]
[Date "2023.08.08"]
[WhiteClock "0:02:10"]
[BlackClock "0:00:03"]
[Board "133"]

1. c4 {[%clk 0:03:00]}  e6 {[%clk 0:02:58]} 2. d4 {[%clk 0:02:59]}  Nf6 {[%clk 0:02:56]} 3. Nf3 {[%clk 0:02:59]}  d5 {[%clk 0:02:55]} 4. g3 {[%clk 0:02:59]}  dxc4 {[%clk 0:02:55]} 5. Bg2 {[%clk 0:02:59]}  Bd7 {[%clk 0:02:55]} 6. Ne5 {[%clk 0:02:59]}  Bc6 {[%clk 0:02:55]} 7. Nxc6 {[%clk 0:02:59]}  Nxc6 {[%clk 0:02:55]} 8. e3 {[%clk 0:03:00]}  Qd7 {[%clk 0:02:54]} 9. O-O {[%clk 0:03:01]}  Rb8 {[%clk 0:02:54]} 10. Qe2 {[%clk 0:03:00]}  b5 {[%clk 0:02:53]} 11. a4 {[%clk 0:03:00]}  a6 {[%clk 0:02:50]} 12. axb5 {[%clk 0:02:52]}  axb5 {[%clk 0:02:50]} 13. b3 {[%clk 0:02:52]}  cxb3 {[%clk 0:02:46]} 14. Nd2 {[%clk 0:02:52]}  Be7 {[%clk 0:02:30]} 15. Nxb3 {[%clk 0:02:52]}  O-O {[%clk 0:02:30]} 16. Bb2 {[%clk 0:02:53]}  Nb4 {[%clk 0:02:24]} 17. Ra7 {[%clk 0:02:45]}  Nfd5 {[%clk 0:02:11]} 18. e4 {[%clk 0:02:37]}  Nb6 {[%clk 0:02:10]} 19. Rd1 {[%clk 0:02:32]}  Ra8 {[%clk 0:01:56]} 20. Nc5 {[%clk 0:02:32]}  Qc6 {[%clk 0:01:11]} 21. Rda1 {[%clk 0:02:19]}  Rxa7 {[%clk 0:01:09]} 22. Rxa7 {[%clk 0:02:20]}  Ra8 {[%clk 0:01:05]} 23. Rxa8+ {[%clk 0:02:20]}  Nxa8 {[%clk 0:00:58]} 24. Qg4 {[%clk 0:02:17]}  Bf8 {[%clk 0:00:46]} 25. Qg5 {[%clk 0:02:14]}  f6 {[%clk 0:00:38]} 26. Qg4 {[%clk 0:02:14]}  Bxc5 {[%clk 0:00:34]} 27. dxc5 {[%clk 0:02:15]}  Nd3 {[%clk 0:00:27]} 28. Bxf6 {[%clk 0:02:12]}  Qd7 {[%clk 0:00:21]} 29. e5 {[%clk 0:02:12]}  Nxc5 {[%clk 0:00:12]} 30. Bxa8 {[%clk 0:02:10]}  c6 {[%clk 0:00:03]} 31. Bxc6 {[%clk 0:02:10]} 1-0


[Site "https://www.chess.com"]

[Event "Titled Tuesday Blitz August 08 Early 2023"]
[White "Priasmoro, Novendra"]
[Black "FREDERICKtheMATE"]
[WhiteFideId "7105029"]
[WhiteElo "2729"]
[BlackElo "2429"]
[Result "0-1"]
[Round "2"]
[TimeControl "180+1"]
[Date "2023.08.08"]
[WhiteClock "0:00:00"]
[BlackClock "0:00:08"]
[Board "134"]

1. e4 {[%clk 0:03:00]}  c5 {[%clk 0:02:59]} 2. Nf3 {[%clk 0:02:58]}  g6 {[%clk 0:03:00]} 3. d4 {[%clk 0:02:57]}  cxd4 {[%clk 0:03:01]} 4. Nxd4 {[%clk 0:02:57]}  Nc6 {[%clk 0:03:00]} 5. c4 {[%clk 0:02:57]}  Nf6 {[%clk 0:03:00]} 6. Nc3 {[%clk 0:02:57]}  Nxd4 {[%clk 0:03:01]} 7. Qxd4 {[%clk 0:02:57]}  d6 {[%clk 0:03:01]} 8. Be2 {[%clk 0:02:54]}  Bg7 {[%clk 0:03:01]} 9. Be3 {[%clk 0:02:54]}  O-O {[%clk 0:03:02]} 10. Qd2 {[%clk 0:02:55]}  Be6 {[%clk 0:03:01]} 11. Rc1 {[%clk 0:02:41]}  Qa5 {[%clk 0:02:59]} 12. b3 {[%clk 0:02:39]}  Rfc8 {[%clk 0:02:57]} 13. f3 {[%clk 0:02:39]}  a6 {[%clk 0:02:55]} 14. Na4 {[%clk 0:02:38]}  Qxd2+ {[%clk 0:02:55]} 15. Kxd2 {[%clk 0:02:38]}  Nd7 {[%clk 0:02:55]} 16. g4 {[%clk 0:02:34]}  f5 {[%clk 0:02:55]} 17. exf5 {[%clk 0:02:32]}  gxf5 {[%clk 0:02:55]} 18. g5 {[%clk 0:02:29]}  d5 {[%clk 0:02:38]} 19. cxd5 {[%clk 0:01:59]}  Bxd5 {[%clk 0:02:39]} 20. Rhd1 {[%clk 0:01:58]}  b5 {[%clk 0:02:31]} 21. Nc5 {[%clk 0:01:58]}  Nxc5 {[%clk 0:02:29]} 22. Bxc5 {[%clk 0:01:59]}  Be5 {[%clk 0:02:08]} 23. Ke3 {[%clk 0:01:55]}  e6 {[%clk 0:02:02]} 24. f4 {[%clk 0:01:51]}  Bb2 {[%clk 0:02:02]} 25. Rc2 {[%clk 0:01:50]}  Ba3 {[%clk 0:01:59]} 26. Kd4 {[%clk 0:01:49]}  Rc6 {[%clk 0:01:48]} 27. Bd3 {[%clk 0:01:00]}  Rac8 {[%clk 0:01:44]} 28. Bxa3 {[%clk 0:00:58]}  Rxc2 {[%clk 0:01:43]} 29. Bxc2 {[%clk 0:00:59]}  Rxc2 {[%clk 0:01:43]} 30. Bd6 {[%clk 0:00:48]}  Kf7 {[%clk 0:01:23]} 31. Ra1 {[%clk 0:00:38]}  Rxh2 {[%clk 0:01:21]} 32. Kc5 {[%clk 0:00:38]}  Rc2+ {[%clk 0:01:17]} 33. Kb4 {[%clk 0:00:38]}  Kg6 {[%clk 0:01:11]} 34. Be5 {[%clk 0:00:33]}  h5 {[%clk 0:00:57]} 35. gxh6 {[%clk 0:00:30]}  Kxh6 {[%clk 0:00:57]} 36. Ka5 {[%clk 0:00:25]}  Rc6 {[%clk 0:00:55]} 37. b4 {[%clk 0:00:25]}  Kh5 {[%clk 0:00:47]} 38. a4 {[%clk 0:00:23]}  bxa4 {[%clk 0:00:46]} 39. Rxa4 {[%clk 0:00:21]}  Bc4 {[%clk 0:00:34]} 40. Ra3 {[%clk 0:00:19]}  Kg4 {[%clk 0:00:30]} 41. Rc3 {[%clk 0:00:18]}  Kh4 {[%clk 0:00:15]} 42. Bf6+ {[%clk 0:00:05]}  Kg4 {[%clk 0:00:15]} 43. Be5 {[%clk 0:00:06]}  Kh4 {[%clk 0:00:15]} 44. Rc1 {[%clk 0:00:06]}  Kg3 {[%clk 0:00:14]} 45. Rg1+ {[%clk 0:00:06]}  Kf3 {[%clk 0:00:14]} 46. Rg8 {[%clk 0:00:07]}  Bb5 {[%clk 0:00:12]} 47. Rd8 {[%clk 0:00:06]}  Rc2 {[%clk 0:00:10]} 48. Rd6 {[%clk 0:00:06]}  Ra2+ {[%clk 0:00:09]} 49. Kb6 {[%clk 0:00:06]}  Ra4 {[%clk 0:00:09]} 50. Kc5 {[%clk 0:00:06]}  Be2 {[%clk 0:00:06]} 51. Rxe6 {[%clk 0:00:06]}  Ra2 {[%clk 0:00:06]} 52. Rf6 {[%clk 0:00:06]}  Rc2+ {[%clk 0:00:06]} 53. Kb6 {[%clk 0:00:06]}  Ke4 {[%clk 0:00:06]} 54. Rd6 {[%clk 0:00:06]}  Bb5 {[%clk 0:00:06]} 55. Rd4+ {[%clk 0:00:06]}  Kf3 {[%clk 0:00:06]} 56. Rd5 {[%clk 0:00:06]}  Kg4 {[%clk 0:00:06]} 57. Rxb5 {[%clk 0:00:06]}  axb5 {[%clk 0:00:05]} 58. Kxb5 {[%clk 0:00:07]}  Kf3 {[%clk 0:00:06]} 59. Ka6 {[%clk 0:00:08]}  Ke4 {[%clk 0:00:06]} 60. b5 {[%clk 0:00:09]}  Kd5 {[%clk 0:00:07]} 61. b6 {[%clk 0:00:08]}  Kc6 {[%clk 0:00:06]} 62. Ka5 {[%clk 0:00:06]}  Ra2+ {[%clk 0:00:07]} 63. Kb4 {[%clk 0:00:07]}  Kxb6 {[%clk 0:00:07]} 64. Kc4 {[%clk 0:00:07]}  Kc6 {[%clk 0:00:08]} 65. Kd4 {[%clk 0:00:08]}  Ra4+ {[%clk 0:00:07]} 66. Ke3 {[%clk 0:00:08]}  Kd5 {[%clk 0:00:08]} 67. Kf3 {[%clk 0:00:07]}  Ra3+ {[%clk 0:00:08]} 68. Kf2 {[%clk 0:00:06]}  Ke4 {[%clk 0:00:08]} 69. Kg2 {[%clk 0:00:06]}  Ke3 {[%clk 0:00:07]} 70. Kg3 {[%clk 0:00:07]}  Ke2+ {[%clk 0:00:07]} 71. Kh4 {[%clk 0:00:07]}  Kf3 {[%clk 0:00:08]} 72. Kg5 {[%clk 0:00:07]}  Ke4 {[%clk 0:00:08]} 73. Kh4 {[%clk 0:00:05]}  Rf3 {[%clk 0:00:08]} 74. Kg5 {[%clk 0:00:05]}  Rg3+ {[%clk 0:00:08]} 75. Kh4 {[%clk 0:00:03]}  Rg4+ {[%clk 0:00:08]} 76. Kh3 {[%clk 0:00:04]}  Rxf4 {[%clk 0:00:08]} 77. Bb8 {[%clk 0:00:00]}  Rg4 {[%clk 0:00:08]} 0-1


[Site "https://www.chess.com"]

[Event "Titled Tuesday Blitz August 08 Early 2023"]
[White "Matinian, Nikita"]
[Black "Smiechu"]
[WhiteFideId "24129100"]
[WhiteElo "2669"]
[BlackElo "2367"]
[Result "1-0"]
[Round "2"]
[TimeControl "180+1"]
[Date "2023.08.08"]
[WhiteClock "0:01:16"]
[BlackClock "0:00:28"]
[Board "135"]

1. e4 {[%clk 0:03:00]}  c5 {[%clk 0:02:59]} 2. Nf3 {[%clk 0:03:00]}  g6 {[%clk 0:02:59]} 3. Bc4 {[%clk 0:02:58]}  Bg7 {[%clk 0:02:59]} 4. c3 {[%clk 0:02:57]}  e6 {[%clk 0:02:44]} 5. d4 {[%clk 0:02:56]}  cxd4 {[%clk 0:02:43]} 6. cxd4 {[%clk 0:02:57]}  Ne7 {[%clk 0:02:43]} 7. Nc3 {[%clk 0:02:48]}  O-O {[%clk 0:02:41]} 8. Bg5 {[%clk 0:02:48]}  h6 {[%clk 0:02:37]} 9. Bh4 {[%clk 0:02:48]}  g5 {[%clk 0:02:38]} 10. Bg3 {[%clk 0:02:48]}  d5 {[%clk 0:02:38]} 11. Bb3 {[%clk 0:02:42]}  dxe4 {[%clk 0:02:36]} 12. Nxe4 {[%clk 0:02:43]}  Nbc6 {[%clk 0:02:34]} 13. O-O {[%clk 0:02:20]}  Nxd4 {[%clk 0:02:27]} 14. Nxd4 {[%clk 0:02:13]}  Qxd4 {[%clk 0:02:27]} 15. Qxd4 {[%clk 0:02:11]}  Bxd4 {[%clk 0:02:26]} 16. Bd6 {[%clk 0:02:09]}  Re8 {[%clk 0:02:23]} 17. Rad1 {[%clk 0:02:06]}  Bxb2 {[%clk 0:02:17]} 18. f4 {[%clk 0:02:06]}  Nf5 {[%clk 0:02:06]} 19. Be5 {[%clk 0:02:03]}  Bxe5 {[%clk 0:01:52]} 20. fxe5 {[%clk 0:02:04]}  Kg7 {[%clk 0:01:52]} 21. Nf6 {[%clk 0:02:03]}  Rf8 {[%clk 0:01:48]} 22. Rc1 {[%clk 0:01:52]}  a5 {[%clk 0:01:42]} 23. Rc7 {[%clk 0:01:49]}  a4 {[%clk 0:01:36]} 24. Bc2 {[%clk 0:01:42]}  Ne3 {[%clk 0:01:35]} 25. Nh5+ {[%clk 0:01:42]}  Kh8 {[%clk 0:01:27]} 26. Rfxf7 {[%clk 0:01:36]}  Rxf7 {[%clk 0:01:23]} 27. Rxf7 {[%clk 0:01:37]}  Ng4 {[%clk 0:01:06]} 28. Nf6 {[%clk 0:01:31]}  Nxf6 {[%clk 0:01:01]} 29. exf6 {[%clk 0:01:32]}  Kg8 {[%clk 0:00:51]} 30. Bg6 {[%clk 0:01:20]}  b6 {[%clk 0:00:41]} 31. Re7 {[%clk 0:01:17]}  Ba6 {[%clk 0:00:35]} 32. Re8+ {[%clk 0:01:16]}  Rxe8 {[%clk 0:00:28]} 33. f7+ {[%clk 0:01:16]} 1-0


[Site "https://www.chess.com"]